fUST/lending_fUST_20240329
["ID","MTS","AMOUNT","RATE_DAILY","PERIOD"]
[320880976,1711662638598,-500.0,0.00037646,15]
[320880977,1711662638607,-500.0,0.00037646,15]
[320880980,1711662638617,-500.0,0.00037646,15]
[320880982,1711662638627,-500.0,0.00037646,15]
[320880984,1711662638636,-500.0,0.00037646,15]
[320880986,1711662638645,-500.0,0.00037646,15]
[320880988,1711662638654,-500.0,0.00037646,15]
[320880990,1711662638663,-500.0,0.00037646,15]
[320880991,1711662638673,-500.0,0.00037646,15]
[320880993,1711662638682,-500.0,0.00037646,15]
[320880995,1711662638691,-500.0,0.00037646,15]
[320880998,1711662638700,-289.81379151,0.00037646,15]
[320881000,1711662638710,-500.0,0.00037646,15]
[320881001,1711662638719,-500.0,0.00037646,15]
[320881003,1711662638728,-500.0,0.00037646,15]
[320881005,1711662638737,-500.0,0.00037646,15]
[320881007,1711662638746,-500.0,0.00037646,15]
[320881019,1711662638844,-500.0,0.00037646,15]
[320881021,1711662638857,-500.0,0.00037646,15]
[320881023,1711662638866,-500.0,0.00037646,15]
[320881025,1711662638875,-500.0,0.00037646,15]
[320881027,1711662638884,-500.0,0.00037646,15]
[320881029,1711662638893,-500.0,0.00037646,15]
[320881031,1711662638902,-500.0,0.00037646,15]
[320881033,1711662638912,-500.0,0.00037646,15]
[320881035,1711662638921,-549.0407497,0.00037646,15]
[320881037,1711662638930,-500.0,0.00037646,15]
[320881039,1711662638939,-500.0,0.00037646,15]
[320881041,1711662638948,-500.0,0.00037646,15]
[320881043,1711662638958,-500.0,0.00037646,15]
[320881045,1711662638967,-500.0,0.00037646,15]
[320881048,1711662638977,-500.0,0.00037646,15]
[320881050,1711662638986,-500.0,0.00037646,15]
[320881052,1711662638995,-500.0,0.00037646,15]
[320881053,1711662639004,-500.0,0.00037646,15]
[320881055,1711662639014,-500.0,0.00037646,15]
[320881057,1711662639023,-500.0,0.00037646,15]
[320881059,1711662639032,-500.0,0.00037646,15]
[320881061,1711662639041,-500.0,0.00037646,15]
[320881063,1711662639050,-500.0,0.00037646,15]
[320881065,1711662639059,-500.0,0.00037646,15]
[320881068,1711662639070,-500.0,0.00037646,15]
[320881069,1711662639082,-500.0,0.00037646,15]
[320881071,1711662639091,-500.0,0.00037646,15]
[320881073,1711662639100,-500.0,0.00037646,15]
[320881075,1711662639110,-500.0,0.00037646,15]
[320881077,1711662639120,-500.0,0.00037646,15]
[320881079,1711662639129,-500.0,0.00037646,15]
[320881082,1711662639139,-500.0,0.00037646,15]
[320881084,1711662639151,-500.0,0.00037646,15]
[320881086,1711662639161,-500.0,0.00037646,15]
[320881088,1711662639170,-500.0,0.00037646,15]
[320881090,1711662639180,-500.0,0.00037646,15]
[320881092,1711662639189,-500.0,0.00037646,15]
[320881094,1711662639199,-500.0,0.00037646,15]
[320881096,1711662639210,-500.0,0.00037646,15]
[320881098,1711662639219,-500.0,0.00037646,15]
[320881100,1711662639230,-500.0,0.00037646,15]
[320881102,1711662639239,-635.11634422,0.00037647,2]
[320881104,1711662639251,-620.06231885,0.00038297,2]
[320881106,1711662639260,-691.97900423,0.00038541,2]
[320881108,1711662639270,-1325.270904,0.00038981,120]
[320881110,1711662639280,-280.0,0.00039324,120]
[320881112,1711662639289,-4135.47763351,0.0003935,2]
[320881114,1711662639298,-501.45881598,0.0003942,7]
[320881116,1711662639308,-1640.0,0.00039427,2]
[320881118,1711662639318,-691.97900423,0.00039702,2]
[320881119,1711662639327,-307.04870363,0.00039746,4]
[320881120,1711662639336,-299.22378644,0.00039746,4]
[320881121,1711662639346,-192.38148075,0.00039746,4]
[320881122,1711662639355,-61564.56482557,0.00039747,120]
[320881123,1711662639365,-151.68961489,0.00039802,2]
[320881124,1711662639374,-5000.0,0.00039881,30]
[320881125,1711662639384,-166.666666,0.0004137,2]
[320881126,1711662639393,-166.666666,0.00042498,2]
[320881127,1711662639403,-635.11634422,0.00042647,2]
[320881128,1711662639412,-468.68910607,0.00042929,31]
[320881129,1711662639422,-500.0,0.00042929,31]
[320881130,1711662639431,-381.13964739,0.00042929,31]
[320881131,1711662639441,-500.0,0.00042929,31]
[320881132,1711662639450,-560.60186522,0.00042929,31]
[320881133,1711662639459,-500.0,0.00042929,31]
[320881134,1711662639469,-500.0,0.00042929,31]
[320881135,1711662639478,-541.36812856,0.00042929,31]
[320881136,1711662639487,-500.0,0.00042929,31]
[320881137,1711662639496,-500.0,0.00042929,31]
[320881139,1711662639505,-500.0,0.00042929,31]
[320881140,1711662639514,-500.0,0.00042929,31]
[320881142,1711662639523,-500.0,0.00042929,31]
[320881144,1711662639532,-500.0,0.00042929,31]
[320881146,1711662639542,-500.0,0.00042929,31]
[320881148,1711662639552,-576.67764327,0.00042929,31]
[320881150,1711662639561,-500.0,0.00042929,31]
[320881152,1711662639571,-500.0,0.00042929,31]
[320881154,1711662639580,-24900.0,0.00042931,2]
[320881156,1711662639591,-172.5531238,0.00043392,2]
[320881158,1711662639600,-166.666666,0.00043626,2]
[320881160,1711662639610,-1325.270904,0.0004455,120]
[320881162,1711662639619,-166.666666,0.00044754,2]
[320881164,1711662639628,-166.666666,0.00045882,2]
[320881166,1711662639637,-166.666666,0.0004701,2]
[320881168,1711662639647,-153.0,0.00047858,2]
[320881170,1711662639657,-371.0729771,0.00047858,2]
[320881172,1711662639666,-153.0,0.00047858,2]
[320881174,1711662639675,-153.0,0.00047858,2]
[320881176,1711662639684,-153.0,0.00047858,2]
[320881178,1711662639694,-153.0,0.00047858,2]
[320881180,1711662639703,-153.0,0.00047858,2]
[320881182,1711662639713,-8488.80713685,0.0005,120]
[320881184,1711662639723,-1325.270904,0.00050119,120]
[320881186,1711662639732,-411.73335,0.00050664,2]
[320881188,1711662639741,-444.96043963,0.00050872,30]
[320881190,1711662639750,-1000.0,0.00050881,2]
[320881192,1711662639759,-171.295321,0.00052778,2]
[320881194,1711662639769,-153.0,0.00052978,2]
[320881196,1711662639778,-153.0,0.00052978,2]
[320881198,1711662639787,-153.0,0.00052978,2]
[320881200,1711662639796,-153.0,0.00052978,2]
[320881202,1711662639806,-153.0,0.00052978,2]
[320881204,1711662639818,-153.0,0.00052978,2]
[320881206,1711662639827,-153.0,0.00052978,2]
[320881208,1711662639837,-153.0,0.00053252,2]
[320881210,1711662639848,-153.0,0.00053252,2]
[320881212,1711662639857,-153.0,0.00053478,2]
[320881214,1711662639866,-153.0,0.00053478,2]
[320881216,1711662639875,-153.0,0.00053478,2]
[320881218,1711662639885,-153.0,0.000535,2]
[320881220,1711662639894,-153.0,0.000535,2]
[320881222,1711662639903,-153.0,0.000535,2]
[320881224,1711662639912,-153.0,0.000535,2]
[320881226,1711662639922,-153.0,0.000535,2]
[320881228,1711662639931,-153.0,0.000535,2]
[320881230,1711662639939,-153.0,0.000535,2]
[320881232,1711662639949,-153.0,0.000535,2]
[320881234,1711662639958,-153.0,0.000535,2]
[320881236,1711662639967,-153.0,0.00053649,2]
[320881237,1711662639976,-202.0622477,0.00053649,2]
[320881239,1711662639986,-202.0622477,0.00053649,2]
[320881241,1711662639995,-153.0,0.00053649,2]
[320881243,1711662640004,-153.0,0.00053649,2]
[320881244,1711662640014,-202.0622477,0.00053649,2]
[320881245,1711662640023,-202.0622477,0.00053649,2]
[320881246,1711662640033,-309.86984272,0.00053696,4]
[320881247,1711662640042,-306.0,0.00053752,2]
[320881249,1711662640053,-153.0,0.00053752,2]
[320881250,1711662640062,-153.0,0.00053752,2]
[320881252,1711662640072,-153.0,0.000538,2]
[320881253,1711662640083,-153.0,0.000538,2]
[320881254,1711662640093,-202.0622477,0.000538,2]
[320881255,1711662640102,-202.0622477,0.000538,2]
[320881256,1711662640111,-153.0,0.000538,2]
[320881257,1711662640122,-153.0,0.000538,2]
[320881258,1711662640131,-202.0622477,0.000538,2]
[320881259,1711662640140,-153.0,0.000538,2]
[320881260,1711662640150,-153.0,0.000538,2]
[320881261,1711662640161,-153.0,0.000538,2]
[320881262,1711662640171,-202.0622477,0.000538,2]
[320881263,1711662640180,-153.0,0.000538,2]
[320881264,1711662640189,-153.0,0.000538,2]
[320881265,1711662640198,-153.0,0.000538,2]
[320881266,1711662640208,-153.0,0.000538,2]
[320881267,1711662640217,-202.0622477,0.000538,2]
[320881268,1711662640226,-153.0,0.000538,2]
[320881269,1711662640236,-202.0622477,0.000538,2]
[320881270,1711662640245,-153.0,0.000538,2]
[320881271,1711662640254,-305.999999,0.000538,2]
[320881272,1711662640263,-153.0,0.000538,2]
[320881273,1711662640273,-153.0,0.000538,2]
[320881274,1711662640282,-153.0,0.000538,2]
[320881275,1711662640292,-202.0622477,0.000538,2]
[320881276,1711662640301,-153.0,0.000538,2]
[320881277,1711662640310,-153.0,0.000538,2]
[320881278,1711662640320,-204.7100192,0.000538,2]
[320881280,1711662640329,-153.0,0.000538,2]
[320881282,1711662640339,-153.0,0.000538,2]
[320881284,1711662640349,-153.0,0.000538,2]
[320881286,1711662640358,-153.0,0.00053841,2]
[320881288,1711662640367,-153.0,0.00053841,2]
[320881290,1711662640376,-153.0,0.00053841,2]
[320881292,1711662640385,-153.0,0.00053978,2]
[320881293,1711662640395,-202.0622477,0.00053978,2]
[320881295,1711662640404,-202.0622477,0.00053978,2]
[320881298,1711662640414,-153.0,0.00053978,2]
[320881299,1711662640423,-153.0,0.00053978,2]
[320881301,1711662640433,-153.0,0.00053978,2]
[320881303,1711662640442,-9723.143018,0.00054,120]
[320881304,1711662640452,-162.58506701,0.00054246,3]
[320881306,1711662640462,-306.0,0.00054252,2]
[320881308,1711662640472,-202.0622477,0.000543,2]
[320881310,1711662640481,-202.0622477,0.000543,2]
[320881312,1711662640490,-202.0622477,0.000543,2]
[320881314,1711662640499,-202.0622477,0.000543,2]
[320881316,1711662640508,-202.0622477,0.000543,2]
[320881318,1711662640518,-202.0622477,0.000543,2]
[320881320,1711662640527,-202.0622477,0.000543,2]
[320881322,1711662640536,-202.0622477,0.000543,2]
[320881324,1711662640545,-202.0622477,0.000543,2]
[320881326,1711662640555,-202.0622477,0.000543,2]
[320881328,1711662640564,-202.0622477,0.000543,2]
[320881330,1711662640574,-202.0622477,0.000543,2]
[320881332,1711662640583,-202.0622477,0.000543,2]
[320881334,1711662640593,-202.0622477,0.000543,2]
[320881336,1711662640602,-153.0,0.000543,2]
[320881338,1711662640611,-153.0,0.000543,2]
[320881340,1711662640620,-153.0,0.000543,2]
[320881342,1711662640630,-202.0622477,0.000543,2]
[320881344,1711662640639,-202.0622477,0.000543,2]
[320881346,1711662640648,-5819.79432457,0.00054575,120]
[320881348,1711662640657,-1810.19986486,0.00054694,2]
[320881350,1711662640667,-407.33322374,0.0005471,120]
[320881352,1711662640676,-5000.0,0.00054744,120]
[320881354,1711662640685,-1185.39549048,0.0005479,4]
[320881356,1711662640694,-155.0,0.0005479,4]
[320881358,1711662640703,-156.68673277,0.0005479,4]
[320881360,1711662640713,-417.11758748,0.0005479,4]
[320881362,1711662640722,-156.26865924,0.0005479,4]
[320881363,1711662640732,-171.50953077,0.0005479,4]
[320881364,1711662640742,-245.12697935,0.0005479,4]
[320881365,1711662640820,-274.70078871,0.0005479,4]
[320881366,1711662640831,-1308.49398382,0.0005479,4]
[320881367,1711662640840,-310.42848237,0.0005479,4]
[320881368,1711662640850,-425.79520623,0.0005479,4]
[320881369,1711662640859,-300.84031814,0.0005479,4]
[320881370,1711662640869,-487.79312888,0.0005479,4]
[320881371,1711662640878,-180.26624286,0.0005479,4]
[320881372,1711662640888,-432.54261912,0.00054791,5]
[320881373,1711662640898,-400.73801592,0.00054792,4]
[320881374,1711662640907,-398.01131532,0.00054792,4]
[320881375,1711662640917,-225.0111954,0.00054792,4]
[320881376,1711662640927,-3226.99230892,0.00054792,4]
[320881377,1711662640936,-155.01240099,0.00054792,4]
[320881378,1711662640945,-194.38214072,0.00054792,2]
[320881379,1711662640955,-240.88945792,0.00054792,4]
[320881380,1711662640964,-239.56257658,0.00054792,4]
[320881381,1711662640974,-400.0,0.00054792,2]
[320881382,1711662640983,-300.24882924,0.00054792,4]
[320881383,1711662640993,-155.0,0.00054792,4]
[320881384,1711662641002,-232.9770968,0.00054792,4]
[320881385,1711662641011,-157.80762119,0.00054792,4]
[320881386,1711662641020,-155.287364,0.00054792,4]
[320881387,1711662641030,-155.0,0.00054792,4]
[320881388,1711662641040,-3550.54,0.00054793,7]
[320881389,1711662641052,-3550.54,0.00054793,7]
[320881390,1711662641061,-3550.54,0.00054793,7]
[320881391,1711662641074,-3550.54,0.00054793,7]
[320881392,1711662641083,-3550.54,0.00054793,7]
[320881393,1711662641093,-3550.54,0.00054793,7]
[320881394,1711662641103,-3550.54,0.00054793,7]
[320881395,1711662641113,-3550.54,0.00054793,7]
[320881396,1711662641123,-1550.9337718,0.00054793,7]
[320881397,1711662641138,-262.3827165,0.00054793,7]
[320881476,1711662643924,-318.35740362,0.00033412,4]
[320881478,1711662643934,-155.4308161,0.00037645,4]
[320881480,1711662643942,-500.0,0.00037646,15]
[320881482,1711662643952,-500.0,0.00037646,15]
[320881484,1711662643961,-500.0,0.00037646,15]
[320881486,1711662643969,-500.0,0.00037646,15]
[320881488,1711662643978,-500.0,0.00037646,15]
[320881490,1711662643987,-500.0,0.00037646,15]
[320881492,1711662643996,-200.0,0.00037646,15]
[320881493,1711662644005,-500.0,0.00037646,15]
[320881495,1711662644014,-500.0,0.00037646,15]
[320881497,1711662644023,-500.0,0.00037646,15]
[320881499,1711662644032,-500.0,0.00037646,15]
[320881501,1711662644041,-500.0,0.00037646,15]
[320881503,1711662644050,-500.0,0.00037646,15]
[320881505,1711662644060,-500.0,0.00037646,15]
[320881507,1711662644072,-500.0,0.00037646,15]
[320881509,1711662644082,-468.38041801,0.00039745,4]
[320881511,1711662644091,-5000.0,0.00039881,30]
[320881513,1711662644101,-153.0,0.00052241,2]
[320881515,1711662644111,-166.666666,0.00052338,2]
[320881517,1711662644120,-153.0,0.00052978,2]
[320881519,1711662644129,-153.0,0.00053252,2]
[320881521,1711662644139,-202.0622477,0.00053649,2]
[320881523,1711662644149,-166.666666,0.00053765,2]
[320881525,1711662644158,-153.0,0.00053978,2]
[320881527,1711662644167,-1737.2235117,0.00054793,7]
[320881529,1711662644176,-3550.54,0.00054793,7]
[320881531,1711662644185,-27433.42124379,0.00054794,4]
[320881533,1711662644194,-155.35485258,0.00054794,20]
[320881535,1711662644203,-155.01240099,0.00054794,4]
[320881537,1711662644212,-500.0,0.00054794,120]
[320881540,1711662644223,-500.0,0.00054794,120]
[320881542,1711662644231,-500.0,0.00054794,120]
[320881543,1711662644241,-500.0,0.00054794,120]
[320881545,1711662644249,-500.0,0.00054794,120]
[320881547,1711662644258,-508.82887129,0.00054794,120]
[320881549,1711662644266,-373.33057356,0.00054794,120]
[320881551,1711662644275,-500.0,0.00054794,120]
[320881553,1711662644284,-500.0,0.00054794,120]
[320881555,1711662644292,-500.0,0.00054794,120]
[320881557,1711662644301,-151.0,0.00054794,7]
[320881559,1711662644309,-500.0,0.00054794,120]
[320881561,1711662644319,-346.04,0.00054794,120]
[320881563,1711662644327,-589.35849417,0.00054794,120]
[320881565,1711662644339,-500.0,0.00054794,120]
[320881567,1711662644349,-500.0,0.00054794,120]
[320881569,1711662644357,-500.0,0.00054794,120]
[320881571,1711662644367,-500.0,0.00054794,120]
[320881573,1711662644376,-500.0,0.00054794,120]
[320881574,1711662644385,-500.0,0.00054794,120]
[320881576,1711662644394,-500.0,0.00054794,120]
[320881578,1711662644403,-500.0,0.00054794,120]
[320881580,1711662644412,-254.37294927,0.00054794,120]
[320881582,1711662644421,-500.0,0.00054794,120]
[320881584,1711662644430,-500.0,0.00054794,120]
[320881586,1711662644439,-349.7,0.00054794,120]
[320881588,1711662644449,-500.0,0.00054794,120]
[320881590,1711662644457,-500.0,0.00054794,120]
[320881592,1711662644467,-500.0,0.00054794,120]
[320881594,1711662644476,-500.0,0.00054794,120]
[320881596,1711662644485,-405.64,0.00054794,120]
[320881598,1711662644495,-500.0,0.00054794,120]
[320881600,1711662644504,-500.0,0.00054794,120]
[320881602,1711662644513,-500.0,0.00054794,120]
[320881604,1711662644522,-500.0,0.00054794,120]
[320881606,1711662644531,-500.0,0.00054794,120]
[320881608,1711662644540,-620.31514983,0.00054794,120]
[320881610,1711662644549,-500.0,0.00054794,120]
[320881612,1711662644558,-500.0,0.00054794,120]
[320881614,1711662644568,-500.0,0.00054794,120]
[320881616,1711662644576,-500.0,0.00054794,120]
[320881618,1711662644585,-500.0,0.00054794,120]
[320881619,1711662644594,-500.0,0.00054794,120]
[320881621,1711662644604,-630.9,0.00054794,120]
[320881623,1711662644613,-500.0,0.00054794,120]
[320881625,1711662644622,-500.0,0.00054794,120]
[320881627,1711662644630,-283.32,0.00054794,120]
[320881629,1711662644639,-500.0,0.00054794,120]
[320881631,1711662644648,-500.0,0.00054794,120]
[320881633,1711662644657,-500.0,0.00054794,120]
[320881635,1711662644666,-500.0,0.00054794,120]
[320881637,1711662644676,-205.72,0.00054794,120]
[320881639,1711662644685,-500.0,0.00054794,120]
[320881641,1711662644694,-500.0,0.00054794,120]
[320881643,1711662644702,-569.62,0.00054794,120]
[320881645,1711662644711,-500.0,0.00054794,120]
[320881647,1711662644720,-269.36768487,0.00054794,120]
[320881649,1711662644729,-500.0,0.00054794,120]
[320881651,1711662644738,-500.0,0.00054794,120]
[320881653,1711662644746,-500.0,0.00054794,120]
[320881655,1711662644755,-500.0,0.00054794,120]
[320881656,1711662644764,-500.0,0.00054794,120]
[320881658,1711662644773,-500.0,0.00054794,120]
[320881660,1711662644782,-500.0,0.00054794,120]
[320881662,1711662644791,-500.0,0.00054794,120]
[320881664,1711662644800,-500.0,0.00054794,120]
[320881666,1711662644809,-500.0,0.00054794,120]
[320881668,1711662644818,-500.0,0.00054794,120]
[320881670,1711662644827,-500.0,0.00054794,120]
[320881672,1711662644836,-245.24,0.00054794,120]
[320881674,1711662644845,-500.0,0.00054794,120]
[320881676,1711662644855,-603.18211614,0.00054794,120]
[320881678,1711662644864,-500.0,0.00054794,120]
[320881680,1711662644873,-500.0,0.00054794,120]
[320881682,1711662644882,-10000.0,0.00054794,120]
[320881684,1711662644892,-10000.0,0.00054794,120]
[320881686,1711662644900,-10000.0,0.00054794,120]
[320881696,1711662644984,-10000.0,0.00054794,120]
[320881698,1711662644993,-10000.0,0.00054794,120]
[320881700,1711662645002,-6261.64532705,0.00054794,120]
[320881702,1711662645012,-500.0,0.00054794,120]
[320881704,1711662645021,-500.0,0.00054794,120]
[320881706,1711662645030,-500.0,0.00054794,120]
[320881708,1711662645039,-500.0,0.00054794,120]
[320881710,1711662645048,-500.0,0.00054794,120]
[320881712,1711662645057,-500.0,0.00054794,120]
[320881714,1711662645067,-500.0,0.00054794,120]
[320881716,1711662645081,-500.0,0.00054794,120]
[320881718,1711662645091,-500.0,0.00054794,120]
[320881720,1711662645100,-500.0,0.00054794,120]
[320881721,1711662645109,-162.22,0.00054794,120]
[320881723,1711662645122,-500.0,0.00054794,120]
[320881725,1711662645132,-518.94,0.00054794,120]
[320881727,1711662645142,-500.0,0.00054794,120]
[320881729,1711662645151,-549.71585919,0.00054794,120]
[320881731,1711662645161,-500.0,0.00054794,120]
[320881733,1711662645172,-242.11848457,0.00054794,120]
[320881735,1711662645181,-500.0,0.00054794,120]
[320881737,1711662645190,-500.0,0.00054794,120]
[320881739,1711662645199,-162.38,0.00054794,120]
[320881741,1711662645208,-500.0,0.00054794,120]
[320881743,1711662645217,-500.0,0.00054794,120]
[320881745,1711662645226,-500.0,0.00054794,120]
[320881746,1711662645235,-500.0,0.00054794,120]
[320881747,1711662645244,-500.0,0.00054794,120]
[320881748,1711662645256,-500.0,0.00054794,120]
[320881749,1711662645266,-500.0,0.00054794,120]
[320881750,1711662645275,-500.0,0.00054794,120]
[320881751,1711662645284,-500.0,0.00054794,120]
[320881752,1711662645293,-500.0,0.00054794,120]
[320881753,1711662645302,-625.98,0.00054794,120]
[320881754,1711662645311,-500.0,0.00054794,120]
[320881755,1711662645320,-500.0,0.00054794,120]
[320881756,1711662645329,-500.0,0.00054794,120]
[320881757,1711662645338,-500.0,0.00054794,120]
[320881758,1711662645348,-500.0,0.00054794,120]
[320881760,1711662645357,-527.8,0.00054794,120]
[320881762,1711662645366,-500.0,0.00054794,120]
[320881764,1711662645375,-500.0,0.00054794,120]
[320881766,1711662645384,-500.0,0.00054794,120]
[320881768,1711662645393,-500.0,0.00054794,120]
[320881769,1711662645402,-500.0,0.00054794,120]
[320881771,1711662645411,-500.0,0.00054794,120]
[320881773,1711662645421,-504.7331533,0.00054794,120]
[320881775,1711662645430,-500.0,0.00054794,120]
[320881777,1711662645440,-619.5,0.00054794,120]
[320881779,1711662645448,-500.0,0.00054794,120]
[320881781,1711662645457,-500.0,0.00054794,120]
[320881783,1711662645466,-500.0,0.00054794,2]
[320881785,1711662645475,-500.0,0.00054794,2]
[320881787,1711662645484,-500.0,0.00054794,2]
[320881789,1711662645493,-500.0,0.00054794,2]
[320881791,1711662645502,-500.0,0.00054794,2]
[320881793,1711662645511,-500.0,0.00054794,2]
[320881795,1711662645520,-500.0,0.00054794,2]
[320881797,1711662645529,-169.42,0.00054794,2]
[320881799,1711662645538,-507.33073865,0.00054794,120]
[320881801,1711662645547,-500.0,0.00054794,120]
[320881803,1711662645556,-261.63468076,0.00054794,120]
[320881804,1711662645565,-500.0,0.00054794,120]
[320881806,1711662645574,-500.0,0.00054794,120]
[320881808,1711662645583,-500.0,0.00054794,120]
[320881810,1711662645592,-500.0,0.00054794,120]
[320881812,1711662645602,-325.4,0.00054794,120]
[320881814,1711662645611,-349.27506923,0.00054794,120]
[320881816,1711662645620,-500.0,0.00054794,120]
[320881818,1711662645630,-500.0,0.00054794,120]
[320881820,1711662645638,-500.0,0.00054794,120]
[320881822,1711662645648,-500.0,0.00054794,120]
[320881824,1711662645657,-500.0,0.00054794,120]
[320881826,1711662645666,-500.0,0.00054794,120]
[320881828,1711662645676,-190.20948705,0.00054794,120]
[320881830,1711662645684,-500.0,0.00054794,120]
[320881832,1711662645693,-180.18,0.00054794,120]
[320881834,1711662645703,-556.8,0.00054794,120]
[320881836,1711662645712,-500.0,0.00054794,120]
[320881838,1711662645720,-500.0,0.00054794,120]
[320881840,1711662645730,-500.0,0.00054794,120]
[320881842,1711662645738,-500.0,0.00054794,120]
[320881843,1711662645747,-500.0,0.00054794,120]
[320881845,1711662645757,-500.0,0.00054794,120]
[320881847,1711662645766,-361.09176658,0.00054794,120]
[320881849,1711662645775,-500.0,0.00054794,120]
[320881851,1711662645784,-604.44,0.00054794,120]
[320881853,1711662645793,-500.0,0.00054794,120]
[320881855,1711662645802,-500.0,0.00054794,120]
[320881857,1711662645810,-500.0,0.00054794,120]
[320881859,1711662645819,-500.0,0.00054794,120]
[320881861,1711662645828,-229.01112361,0.00054794,120]
[320881863,1711662645837,-500.0,0.00054794,120]
[320881865,1711662645846,-500.0,0.00054794,120]
[320881867,1711662645856,-500.0,0.00054794,120]
[320881869,1711662645865,-500.0,0.00054794,120]
[320881871,1711662645874,-500.0,0.00054794,120]
[320881872,1711662645883,-500.0,0.00054794,120]
[320881874,1711662645892,-468.38,0.00054794,120]
[320881876,1711662645901,-500.0,0.00054794,120]
[320881878,1711662645911,-500.0,0.00054794,120]
[320881880,1711662645920,-500.0,0.00054794,120]
[320881882,1711662645929,-500.0,0.00054794,120]
[320881884,1711662645938,-348.16058199,0.00054794,120]
[320881886,1711662645947,-500.0,0.00054794,120]
[320881888,1711662645956,-500.0,0.00054794,120]
[320881890,1711662645965,-500.0,0.00054794,120]
[320881892,1711662645974,-500.0,0.00054794,120]
[320881894,1711662645983,-213.08,0.00054794,120]
[320881896,1711662645992,-500.0,0.00054794,120]
[320881898,1711662646001,-500.0,0.00054794,120]
[320881900,1711662646010,-444.8484916,0.00054794,120]
[320881902,1711662646019,-500.0,0.00054794,120]
[320881904,1711662646027,-500.0,0.00054794,120]
[320881906,1711662646036,-500.0,0.00054794,120]
[320881908,1711662646045,-500.0,0.00054794,120]
[320881910,1711662646054,-228.93109243,0.00054794,120]
[320881912,1711662646063,-500.0,0.00054794,120]
[320881914,1711662646078,-500.0,0.00054794,120]
[320881916,1711662646087,-178.08530001,0.00054794,120]
[320881918,1711662646096,-500.0,0.00054794,120]
[320881920,1711662646106,-500.0,0.00054794,120]
[320881921,1711662646116,-536.87190349,0.00054794,120]
[320881922,1711662646125,-500.0,0.00054794,120]
[320881923,1711662646134,-500.0,0.00054794,120]
[320881924,1711662646144,-500.0,0.00054794,120]
[320881925,1711662646154,-500.0,0.00054794,120]
[320881926,1711662646165,-500.0,0.00054794,120]
[320881927,1711662646174,-500.0,0.00054794,120]
[320881928,1711662646183,-616.54,0.00054794,120]
[320881929,1711662646192,-500.0,0.00054794,120]
[320881930,1711662646201,-500.0,0.00054794,120]
[320881931,1711662646210,-500.0,0.00054794,120]
[320881933,1711662646220,-500.0,0.00054794,120]
[320881935,1711662646229,-500.0,0.00054794,120]
[320881937,1711662646238,-500.0,0.00054794,120]
[320881939,1711662646246,-500.0,0.00054794,120]
[320881941,1711662646256,-500.0,0.00054794,120]
[320881942,1711662646264,-500.0,0.00054794,120]
[320881943,1711662646273,-526.79995594,0.00054794,120]
[320881944,1711662646282,-500.0,0.00054794,120]